Cogmind - Beta 13 @@@ ROGUE MODE // 2024.03.31 @ 05:00:29 Player: prestanton Result: Destroyed by H-61 Shepherd with Heavy Assault Cannon Performance ------------- Evolutions (2) 1000 Regions Visited (3) 600 Robots Destroyed (13) 65 Value Destroyed (455) 455 Prototype IDs (0) 0 Alien Tech Used (0) 0 Bonus (-18) -18 TOTAL SCORE: 2102 Bonus ------- Friendly Fire -18 Cogmind --------- Core Integrity 0/550 Matter 260/300 Energy 30/100 System Corruption 0% Temperature Cool (5) Movement Core (50) Location -8/Materials Parts ------- > --- POWER (2) -------- (None) > --- PROPULSION (3) --- (None) > --- UTILITY (3) ------ Advanced Visual Processing Unit Signal Interpreter > --- WEAPON (3) ------- (None) > --- INVENTORY (5) ---- Humpback Particle Charger Scrap Shield Peak State ------------ > --- POWER ------------ Light Nuclear Core Light Nuclear Core > --- PROPULSION ------- Hover Unit > --- UTILITY ---------- Signal Interpreter Core Analyzer System Restoration Module > --- WEAPON ----------- Katana > --- INVENTORY -------- Improved Heat Sink Humpback Scrap Shield [Rating: 19] Favorites ----------- Power Subdweller Power Source Engine Subdweller Power Source Power Core Light Nuclear Core Propulsion Hover Unit Leg Aluminum Leg Hover Unit Hover Unit Utility Signal Interpreter Device Subdweller Optics Processor Signal Interpreter Weapon Grenade Launcher Energy Gun Medium Laser Energy Cannon Beam Cannon Ballistic Gun Light Assault Rifle Launcher Grenade Launcher Slashing Weapon Katana Build | -11 -10 -10 -8 ------- Run | Yrd Mat Sub Mat Slots Evolved 4 | . . . 4 Power 1 | . . . 1 Propulsion 1 | . . . 1 Utility 1 | . . . 1 Weapon 1 | . . . 1 Parts Attached 25 | 5 9 2 9 Power 5 | 1 1 1 2 Engine 3 | 1 1 1 . Core 2 | . . . 2 Reactor . | . . . . Propulsion 6 | 2 3 . 1 Treads . | . . . . Leg 3 | 2 . . 1 Wheel . | . . . . Hover 3 | . 3 . . Flight . | . . . . Utility 7 | . 2 1 4 Device 3 | . . 1 2 Storage . | . . . . Processor 4 | . 2 . 2 Hackware . | . . . . Protection . | . . . . Artifact . | . . . . Weapon 7 | 2 3 . 2 Energy Gun 2 | 1 1 . . Energy Cannon 2 | . 1 . 1 Ballistic Gun 1 | 1 . . . Ballistic Cannon . | . . . . Launcher 1 | . 1 . . Special Weapon . | . . . . Impact Weapon . | . . . . Slashing Weapon 1 | . . . 1 Piercing Weapon . | . . . . Special Melee Weapon . | . . . . Unidentified Prototypes . | . . . . Parts Lost 14 | 1 . 1 12 Power 4 | 1 . 1 2 Propulsion 3 | . . . 3 Utility 3 | . . . 3 Weapon 4 | . . . 4 Highest Loss Streak 9 | 1 . 1 9 To Critical Strikes . | . . . . Average Slot Usage (%) 73 | . 79 97 50 Engine 10 | . 13 12 6 Core 1 | . . . 2 Leg 6 | . 16 . . Hover 14 | . 10 28 9 Device 5 | . . 11 8 Processor 14 | . 10 16 16 Energy Gun 1 | . 4 . . Energy Cannon 8 | . 9 14 3 Launcher 9 | . 12 14 2 Naked Turns . | . . . . Heaviest Build 14 | 6 11 13 14 Greatest Support 20 | 20 20 12 12 Greatest Overweight (x) 2 | . 1 1 2 Average Overweight (x) . | . . . . Largest Inventory Capacity 5 | 5 5 5 5 Average Capacity 5 | 5 5 5 5 Most Carried 5 | 5 5 5 5 Average Carried 4 | 3 3 4 4 Final Capacity 5 | 5 5 5 5 Final Carried 5 | 5 4 5 5 Class Distribution -------------------- 100% | Mutant Dominant Class ---------------- Mutant | -10/Materials Mutant | -10/Subcaves Mutant | -8/Materials Resources | -11 -10 -10 -8 ----------- Run | Yrd Mat Sub Mat Matter Collected 472 | 257 112 103 . Remotely . | . . . . Salvage Created 457 | 41 151 209 56 Parts 25 | 2 12 8 3 Haulers Intercepted . | . . . . Recyclers Shooed . | . . . . Parts Field Recycled . | . . . . Retrieved Matter . | . . . . Parts Self-Destructed 12 | . . 12 . Prevented . | . . . . Kills | -11 -10 -10 -8 ------- Run | Yrd Mat Sub Mat Combat Hostiles Destroyed 11 | 1 3 6 1 Guns 1 | 1 . . . Cannons 3 | . 1 1 1 AOE 7 | . 2 5 . Classes Destroyed 3 | 1 1 1 . Watcher 2 | . 2 . . Grunt 5 | 1 3 . 1 Subdweller 6 | . . 6 . Best Kill Streak 4 | 1 2 4 1 Combat Bots Only 4 | 1 1 4 1 Max Kills in Single Turn 2 | 1 1 2 1 Gunslinging . | . . . . Exploded 2 | . 1 2 . Melee . | . . . . Uniques/NPCs Destroyed . | . . . . Combat | -11 -10 -10 -8 -------- Run | Yrd Mat Sub Mat Hostile Shots Fired 118 | 11 7 11 89 Missed 27 | 1 1 2 23 Damage Taken 1596 | 113 150 193 1140 Core 717 | 11 74 42 590 Absorbed by Shields . | . . . . Core Remaining (%) 72 | 95 . 49 . Volleys Fired 45 | 7 12 13 13 Largest 2 | 2 2 2 1 Hottest 90 | 70 90 90 75 Shots Fired 63 | 14 16 20 13 Gun 14 | 14 . . . Cannon 37 | . 12 13 12 Launcher 12 | . 4 7 1 Special . | . . . . Kinetic 7 | 7 . . . Thermal 44 | 7 12 13 12 Explosive 12 | . 4 7 1 Electromagnetic . | . . . . Robot Hit Streak 8 | 5 8 7 3 Robot Miss Streak 3 | 2 1 3 1 Penetration Max . | . . . . Secondary Targets . | . . . . Shots Hit Robots 39 | 9 10 9 11 Core Hits 25 | 3 7 11 4 Critical Kills . | . . . . Critical Parts Destroyed . | . . . . Critical Strikes 2 | . . . 2 Sever 2 | . . . 2 Melee Attacks 4 | . . . 4 Impact . | . . . . Slashing 4 | . . . 4 Piercing . | . . . . Sneak Attacks . | . . . . Combat Hostiles . | . . . . Follow-up Attacks . | . . . . Damage Inflicted 1285 | 103 256 620 306 Guns 103 | 103 . . . Cannons 422 | . 124 105 193 Explosions 667 | . 132 515 20 Melee 93 | . . . 93 Ramming . | . . . . Kinetic 42 | 42 . . . Thermal 483 | 61 124 105 193 Explosive 667 | . 132 515 20 Electromagnetic . | . . . . Impact . | . . . . Slashing 93 | . . . 93 Piercing . | . . . . Highest Corruption . | . . . . Average Corruption . | . . . . Corruption Purged . | . . . . Corruption Blocked . | . . . . Overload Shots . | . . . . Overflow Damage 16 | . . 16 . Projectiles . | . . . . Explosions 16 | . . 16 . Melee . | . . . . Knockbacks . | . . . . Impact . | . . . . Kinetic . | . . . . Secondary . | . . . . Self-Inflicted Damage 40 | . 40 . . Shots 1 | . 1 . . Rammed . | . . . . Targets Rammed . | . . . . Kicked . | . . . . Crushed . | . . . . Highest Temperature 111 | 54 108 . 111 Average Temperature 31 | 30 36 . 27 Received Heat Transfer 732 | 60 36 6 630 Siege Activations . | . . . . Robots Corrupted . | . . . . Combat Hostiles . | . . . . Parts Fried . | . . . . Impact Corruptions . | . . . . Robots Melted . | . . . . Combat Hostiles . | . . . . Parts Melted 5 | 2 1 2 . Heat Transferred 962 | 185 259 222 296 Parts Sabotaged . | . . . . Parts Stolen . | . . . . Parts Stripped . | . . . . Power Chain Reactions . | . . . . Alert | -11 -10 -10 -8 ------- Run | Yrd Mat Sub Mat Peak Influence 181 | 20 181 . 158 Initial 42 | . 13 . 42 Average 60 | 5 71 . 85 Maximum Alert Level . | . . . . Low Security (%) 100 | 100 100 . 100 Level 1 . | . . . . Level 2 . | . . . . Level 3 . | . . . . Level 4 . | . . . . Level 5 . | . . . . High Security . | . . . . Max Security . | . . . . Squads Dispatched 4 | . 2 . 2 Investigation 2 | . 2 . . Extermination . | . . . . Reinforcement 2 | . . . 2 Assault . | . . . . Garrison . | . . . . Intercept . | . . . . Searches Triggered . | . . . . Construction Impeded . | . . . . Haulers Reinforced . | . . . . Active Scanning Responses . | . . . . Cargo Convoy Interrupts . | . . . . Stealth | -11 -10 -10 -8 --------- Run | Yrd Mat Sub Mat Distress Signals 3 | . 1 . 2 Communications Jammed . | . . . . Distress Signals . | . . . . Times Spotted 36 | 1 6 11 18 Peak Tracking Total 10 | 1 2 3 10 Tactical Retreats 4 | . . . 4 Traps | -11 -10 -10 -8 ------- Run | Yrd Mat Sub Mat Traps Triggered 1 | . 1 . . Indirectly . | . . . . Trap Hack Attempts . | . . . . Triggered . | . . . . Disarmed . | . . . . Reprogrammed . | . . . . Reused . | . . . . Traps Extracted . | . . . . Installed . | . . . . Triggered . | . . . . Machines | -11 -10 -10 -8 ---------- Run | Yrd Mat Sub Mat Machines Disabled . | . . . . Max in Single Turn . | . . . . Machines Repaired . | . . . . Machines Dismantled . | . . . . Machines Sabotaged . | . . . . Overloaded Fab Kills . | . . . . Hacking | -11 -10 -10 -8 --------- Run | Yrd Mat Sub Mat Machines Accessed 3 | . 2 . 1 Terminals 3 | . 2 . 1 Fabricators . | . . . . Repair Stations . | . . . . Recycling Units . | . . . . Scanalyzers . | . . . . Garrison Access . | . . . . Total Hacks 10 | . 9 . 1 Successful 7 | . 6 . 1 Failed 2 | . 2 . . Catastrophic . | . . . . Database Lockouts 1 | . 1 . . Manual . | . . . . Terminals 10 | . 9 . 1 Fabricators . | . . . . Repair Stations . | . . . . Recycling Units . | . . . . Scanalyzers . | . . . . Garrison Access . | . . . . Terminal Hacks 7 | . 6 . 1 Record 6 | . 6 . . Recall Reinforcements 1 | . . . 1 Fabricator Hacks . | . . . . Repair Station Hacks . | . . . . Recycling Unit Hacks . | . . . . Scanalyzer . | . . . . Garrison Access Hacks . | . . . . Unauthorized Hacks . | . . . . Terminals . | . . . . Fabricators . | . . . . Repair Stations . | . . . . Recycling Units . | . . . . Scanalyzers . | . . . . Garrison Access . | . . . . Data Cores Recovered . | . . . . Used . | . . . . Hacking Detections 2 | . 2 . . Full Trace Events 2 | . 2 . . Feedback Events . | . . . . Feedback Blocked . | . . . . Robot Schematics Acquired . | . . . . Robots Built . | . . . . Authchips . | . . . . Time . | . . . . Total Robot Build Rating . | . . . . Part Schematics Acquired . | . . . . Parts Built . | . . . . Authchips . | . . . . Time . | . . . . Total Part Build Rating . | . . . . Parts Repaired . | . . . . Time . | . . . . Parts Recycled . | . . . . Recycled Matter . | . . . . Retrieved Matter . | . . . . Retrieved Components . | . . . . Parts Scanalyzed . | . . . . Part Schematics Acquired . | . . . . Parts Damaged . | . . . . Bothacking | -11 -10 -10 -8 ------------ Run | Yrd Mat Sub Mat Used RIF Installer . | . . . . Robots Hacked . | . . . . Non-combat . | . . . . Combat . | . . . . Robot Hacks Applied . | . . . . Relay Couplers Released . | . . . . Fabnet Peak Effective % . | . . . . Robots Rewired . | . . . . Allies Hacked . | . . . . Hacks Repelled . | . . . . Allies | -11 -10 -10 -8 -------- Run | Yrd Mat Sub Mat Total Allies . | . . . . Largest Group . | . . . . Highest-Rated Group . | . . . . Highest-Rated Ally . | . . . . Total Orders . | . . . . Ally Attacks . | . . . . Total Damage . | . . . . Kills . | . . . . Allies Corrupted . | . . . . Allies Melted . | . . . . Intel | -11 -10 -10 -8 ------- Run | Yrd Mat Sub Mat Robot Analysis Total . | . . . . Derelict Logs Recovered 1 | . . 1 . Drone Launches . | . . . . Drone Recoveries . | . . . . Exploration | -11 -10 -10 -8 ------------- Run | Yrd Mat Sub Mat Turns Passed 1007 | 189 300 219 299 Spaces Moved 885 | 132 226 177 350 Core 85 | 35 . . 50 Treads . | . . . . Legs 183 | 97 85 . 1 Wheels . | . . . . Hover 617 | . 141 177 299 Flight . | . . . . Fastest Speed 50 | 50 56 56 50 Average Speed 85 | 101 89 99 70 Slowest Speed 180 | 120 130 116 180 Overloaded Moves . | . . . . Propulsion Burnouts . | . . . . Robots Hopped . | . . . . Cave-ins Triggered . | . . . . Exploration Rate (%) 17 | 7 19 16 29 Regions Visited 3 Branch Regions 1 Pre-discovered Areas . | . . . . Known Exits Taken 2 | . 1 1 . Unknown Exits Taken 1 | 1 . . . Scrap Searched 1 | . . 1 . Spaces Dug . | . . . . Terrain Destroyed 65 | . 28 26 11 Melee . | . . . . Projectile 3 | . . . 3 AOE 62 | . 28 26 8 Terrain Rammed . | . . . . Walls Destroyed . | . . . . Machines Disabled . | . . . . Actions | -11 -10 -10 -8 --------- Run | Yrd Mat Sub Mat Total 1072 | 174 314 202 382 Wait 69 | 21 47 1 . Move 882 | 131 225 176 350 Hop . | . . . . Pick Up 26 | 10 9 5 2 Fast Attach 8 | . . . 8 Attach 17 | 5 9 2 1 Detach 7 | . 5 1 1 Swap . | . . . . Drop 14 | . 7 4 3 Fire 45 | 7 12 13 13 Melee 4 | . . . 4 Ram . | . . . . Kick . | . . . . Crush . | . . . . Escape Stasis . | . . . . Rewire . | . . . . Trap . | . . . . Miscellaneous . | . . . . Route ------- -11/Scrapyard -10/Materials -10/Subcaves -8/Materials (discovered 1 exit: Fac) History --------- Turn | Location | Event 2 | -11/Scrapyard | Met Revision 17 111 | -11/Scrapyard | Discovered new exit (range 8) 190 | -11/Scrapyard | Entered Materials 300 | -10/Materials | Central database locked down 317 | -10/Materials | Build established: Mutant 487 | -10/Materials | Discovered new exit (range 8) 490 | -10/Materials | Identified exit to Subcaves 490 | -10/Materials | Entered Subcaves 491 | -10/Subcaves | Learned location of 1 exit from Materials 573 | -10/Subcaves | Ambushed by swarm of Subdwellers 579 | -10/Subcaves | Core integrity fell below 50% 621 | -10/Subcaves | Shifting Twisted Machinery released Sub. Monowheel 695 | -10/Subcaves | Lost 4 allies 697 | -10/Subcaves | Discovered new exit (range 12) 708 | -10/Subcaves | Identified exit to Materials 709 | -10/Subcaves | Entered Materials 709 | -8/Materials | Evolved 4 slots: Power x1, Propulsion x1, Utility x1, Weapon x1 710 | -8/Materials | Identified exit to Factory 828 | -8/Materials | Lost 3 parts (1n2w) 982 | -8/Materials | Core integrity fell below 50% 1003 | -8/Materials | Core integrity fell below 20% 1008 | -8/Materials | Destroyed by H-61 Shepherd with Heavy Assault Cannon Last Messages --------------- Establishing remote squad link... Recalled reinforcement squad RA12NE91P8. 00965_ Acquired Particle Charger. 00968_ Acquired Hvy. Particle Cannon. 00975_ G-47 Trooper destroyed. 00982_ Imp. Heat Sink destroyed. To regain energy, simply wait via the mouse wheel, '.', or KP5. Also make sure your per-turn energy generation is a net positive, and consider deactivating power-draining parts if not. 00990_ ALERT: Suspicious intruders detected, dispatching Specialist reinforcements to area. 00993_ Acquired Adv. Visual Processing Unit. 01006_ Nuclear Reactor explodes. 01006_ Hvy. Particle Cannon destroyed. 01006_ Core Analyzer destroyed. 01006_ G-47 Trooper destroyed. 01006_ Penetrated by Slug. 01006_ W-25 Informer sends out distress signal. 01008_ Slug penetrates Wall. [Achievement: First Step to Greatness] Map ----- +----------------------------------------------------+ | ?????????????## ##???# """"""" #?# #??# ! #??? | | ???????#+##### #???# """"""" #?# #??##/####### | | ?? ##### """"""" #?# #???# ## | | ?? T + """"""" #?# #???# ## """ | | ?? ##### """"""" #?# ????# ## "T" | | ??######## # #???# #?# ????# ## | | ?????????# #######???#####+####### #??## ## | | ?????????# ?????????????# #??# # | | ?????????# ??????????????# #??# + = | | ?????????# ??????????????# #??# # "" | | ?????????# ???????????????## ##### #??# # "" | | ?????????# ????????????#####+##### #??# # "" | | ?????????#?????????????# # #??# # | | ???????????????????????# # #### ###### | | ???????????????????????# # #????? | | ???????????????????????# # #????? | | ???????????????????????# # !* #????? | | ???????????????????????# + #"#"####????? | | ???????????????????????# # # %= #????? | | ???????????????????????# # # ! #????? | | ???????????????????????########### " !! #????? | | ????????????????????????# # # !! #????? | | ????????????????????????# """ # # #????? | | ????????????????????????# """ # # #????? | | ????????????????????????#! """ g ########????? | | ????????????????????????#@% g #???????????? | | ????????????????????????# #???????????? | | ????????????????????????# ;#??????????? | | ????????????????????????+ ??????? | | ????????????????????????# x ?